fUSD/lending_fUSD_20260322
["ID","MTS","AMOUNT","RATE_DAILY","PERIOD"]
[408739593,1774183848582,-198.40214884,0.00028958,2]
[408739594,1774183848592,-250.0,0.00028977,12]
[408739595,1774183848602,-166.66,0.0002898,30]
[408739596,1774183848611,-2724.43089287,0.00029,120]
[408739597,1774183848621,-979.16666667,0.00029,7]
[408739598,1774183848631,-2000.0,0.00029,2]
[408739599,1774183848640,-160.0,0.00029,7]
[408739600,1774183848650,-1451.4,0.00029,7]
[408739601,1774183848660,-887.45,0.00029157,120]
[408739602,1774183848670,-150.0,0.0002936,2]
[408739603,1774183848679,-163.611,0.0002936,2]
[408739604,1774183848689,-153.6788,0.000294,2]
[408739605,1774183848699,-887.45,0.00029431,120]
[408739606,1774183848709,-833.92535153,0.00029552,2]
[408739607,1774183848718,-693.3919763,0.00029552,2]
[408739608,1774183848728,-166.66,0.00029554,30]
[408739609,1774183848738,-10642.99,0.00029648,2]
[408739610,1774183848748,-507.0,0.00029661,15]
[408739611,1774183848758,-887.45,0.00029705,120]
[408739612,1774183848768,-152.49227162,0.00029823,76]
[408739613,1774183848778,-181.11,0.00029859,30]
[408739614,1774183848789,-160.0,0.0002989,30]
[408739615,1774183848799,-935.8,0.000299,7]
[408739616,1774183848809,-150.0,0.00029971,2]
[408739617,1774183848819,-887.45,0.00029979,120]
[408739618,1774183848830,-246.0975821,0.0003,7]
[408739619,1774183848840,-246.0975821,0.0003,7]
[408739620,1774183848850,-362.72905046,0.0003,30]
[408739621,1774183848860,-714.07816869,0.0003,120]
[408739622,1774183848872,-218.56334008,0.0003,120]
[408739623,1774183848882,-1414.99878496,0.0003,120]
[408739624,1774183848892,-519.80003167,0.0003,30]
[408739625,1774183848901,-150.0,0.0003,2]
[408739626,1774183848911,-726.0,0.0003,120]
[408739627,1774183848921,-421.87618475,0.0003,7]
[408739628,1774183848930,-160.0,0.0003,120]
[408739629,1774183848940,-1089.0,0.0003005,5]
[408739630,1774183848949,-1359.0,0.000301,7]
[408739631,1774183848959,-1272.69,0.000301,7]
[408739632,1774183848968,-166.66,0.00030128,30]
[408739633,1774183848978,-1990.5393402,0.0003013,120]
[408739634,1774183848988,-318.80975359,0.0003013,120]
[408739635,1774183848998,-210.84932622,0.0003013,30]
[408739636,1774183849007,-300.0,0.0003013,30]
[408739637,1774183849017,-168.381018,0.00030137,7]
[408739638,1774183849026,-168.381018,0.00030137,7]
[408739639,1774183849036,-168.381018,0.00030137,7]
[408739640,1774183849045,-168.381018,0.00030137,7]
[408739641,1774183849055,-168.381018,0.00030137,7]
[408739642,1774183849068,-168.381018,0.00030137,7]
[408739643,1774183849078,-168.381018,0.00030137,7]
[408739644,1774183849087,-168.381018,0.00030137,7]
[408739645,1774183849097,-160.0,0.00030139,30]
[408739646,1774183849107,-888.15,0.000302,30]
[408739647,1774183849116,-160.0,0.00030201,30]
[408739648,1774183849126,-887.45,0.00030253,120]
[408739649,1774183849135,-576.15,0.00030397,60]
[408739650,1774183849145,-2142.99,0.000304,2]
[408739651,1774183849155,-202.985,0.000305,30]
[408739652,1774183849164,-887.45,0.00030527,120]
[408739653,1774183849173,-150.0,0.00030569,30]
[408739654,1774183849183,-507.0,0.0003078,16]
[408739655,1774183849193,-500.0,0.00030799,120]
[408739656,1774183849203,-250.0,0.000308,30]
[408739657,1774183849212,-887.45,0.00030801,120]
[408739658,1774183849222,-150.0,0.000309,30]
[408739659,1774183849232,-566.0,0.00030977,30]
[408739660,1774183849241,-58648.31,0.00031,7]
[408739661,1774183849251,-979.16666667,0.00031,120]
[408739662,1774183849260,-2269.20548033,0.00031,30]
[408739663,1774183849269,-979.16666667,0.00031,30]
[408739664,1774183849278,-202.985,0.00031048,30]
[408739665,1774183849287,-887.45,0.00031075,120]
[408739666,1774183849296,-1451.4,0.000311,7]
[408739667,1774183849306,-150.0,0.0003128,30]
[408739668,1774183849315,-312.0,0.0003132,30]
[408739669,1774183849325,-887.45,0.00031349,120]
[408739670,1774183849334,-515.73565323,0.000314,30]
[408739671,1774183849344,-150.0,0.0003147,2]
[408739672,1774183849353,-177.53,0.00031518,2]
[408739673,1774183849362,-283.71,0.00031518,2]
[408739674,1774183849372,-492.79,0.00031518,2]
[408739675,1774183849381,-311.04,0.00031518,2]
[408739676,1774183849391,-202.985,0.00031596,30]
[408739677,1774183849403,-250.0,0.0003162,20]
[408739678,1774183849413,-887.45,0.00031623,120]
[408739679,1774183849422,-225.23,0.00031693,2]
[408739680,1774183849432,-764.94,0.00031693,2]
[408739681,1774183849444,-908.39,0.00031693,2]
[408739682,1774183849454,-908.39,0.00031693,2]
[408739683,1774183849463,-908.39,0.00031693,2]
[408739684,1774183849473,-500.0,0.00031863,2]
[408739685,1774183849483,-887.45,0.00031897,120]
[408739686,1774183849493,-507.0,0.00031898,17]
[408739687,1774183849502,-566.0,0.00031977,30]
[408739688,1774183849512,-150.0,0.00031991,30]
[408739689,1774183849521,-175.58471718,0.00032,120]
[408739690,1774183849531,-935.8,0.00032,7]
[408739691,1774183849541,-887.45,0.00032171,120]
[408739692,1774183849551,-1359.0,0.000322,7]
[408739693,1774183849560,-1272.69,0.000322,7]
[408739694,1774183849570,-322.0,0.000322,2]
[408739695,1774183849579,-998.0,0.000322,2]
[408739696,1774183849589,-312.0,0.000322,2]
[408739697,1774183849598,-362.72905046,0.00032222,30]
[408739698,1774183849607,-181.59,0.00032223,60]
[408739699,1774183849617,-181.59,0.00032223,60]
[408739700,1774183849626,-181.58,0.00032223,60]
[408739701,1774183849636,-864.78058953,0.00032291,2]
[408739702,1774183849646,-719.04747942,0.00032291,2]
[408739703,1774183849656,-169.90912624,0.00032381,2]
[408739704,1774183849666,-887.45,0.00032445,120]
[408739705,1774183849675,-154.3007,0.000326,2]
[408739706,1774183849684,-700.0,0.00032602,2]
[408739707,1774183849694,-700.0,0.00032602,2]
[408739708,1774183849704,-591.0,0.00032602,2]
[408739709,1774183849713,-2000.0,0.000327,2]
[408739710,1774183849723,-150.0,0.00032702,30]
[408739711,1774183849733,-887.45,0.00032719,120]
[408739712,1774183849742,-166.66,0.00032792,2]
[408739713,1774183849752,-2142.99,0.000328,2]
[408739714,1774183849762,-153.0,0.00032849,2]
[408739715,1774183849773,-407.7,0.00032871,2]
[408739716,1774183849783,-220.734885,0.00032877,7]
[408739717,1774183849792,-220.734885,0.00032877,7]
[408739718,1774183849802,-220.734885,0.00032877,7]
[408739719,1774183849812,-220.734885,0.00032877,7]
[408739720,1774183849821,-220.734885,0.00032877,7]
[408739721,1774183849831,-220.734885,0.00032877,7]
[408739722,1774183849841,-220.734885,0.00032877,7]
[408739723,1774183849851,-220.734885,0.00032877,7]
[408739724,1774183849861,-1000.0,0.00032877,15]
[408739725,1774183849871,-574.0,0.00032877,15]
[408739726,1774183849880,-245.209247,0.00032877,7]
[408739727,1774183849890,-245.209247,0.00032877,7]
[408739728,1774183849899,-245.209247,0.00032877,7]
[408739729,1774183849909,-245.209247,0.00032877,7]
[408739730,1774183849918,-245.209247,0.00032877,7]
[408739731,1774183849928,-245.209247,0.00032877,7]
[408739732,1774183849938,-245.209247,0.00032877,7]
[408739733,1774183849947,-245.209247,0.00032877,7]
[408739734,1774183849956,-300.0,0.00032877,5]
[408739735,1774183849966,-500.0,0.00032877,2]
[408739736,1774183849975,-500.0,0.00032877,2]
[408739737,1774183849984,-500.0,0.00032877,2]
[408739738,1774183849994,-500.0,0.00032877,2]
[408739739,1774183850004,-500.0,0.00032877,2]
[408739740,1774183850014,-500.0,0.00032877,2]
[408739741,1774183850023,-387.93894982,0.00032877,2]
[408739742,1774183850033,-150.0,0.00032877,2]
[408739743,1774183850042,-150.0,0.00032877,2]
[408739744,1774183850051,-150.0,0.00032877,2]
[408739745,1774183850061,-150.0,0.00032877,2]
[408739746,1774183850070,-192.93939284,0.00032877,2]
[408739747,1774183850079,-202.985,0.00032966,30]
[408739748,1774183850088,-566.0,0.00032977,30]
[408739749,1774183850098,-887.45,0.00032993,120]
[408739750,1774183850107,-472.94793643,0.00033,30]
[408739751,1774183850116,-1451.4,0.00033,30]
[408739752,1774183850126,-888.15,0.00033,30]
[408739753,1774183850136,-507.0,0.00033017,18]
[408739754,1774183850146,-150.0,0.00033043,2]
[408739755,1774183850155,-282.0,0.00033137,2]
[408739756,1774183850164,-58648.31,0.000332,7]
[408739757,1774183850173,-887.45,0.00033267,120]
[408739758,1774183850182,-500.0,0.00033302,120]
[408739759,1774183850192,-250.0,0.00033329,2]
[408739760,1774183850201,-250.0,0.00033329,2]
[408739761,1774183850211,-222.0,0.00033329,2]
[408739762,1774183850220,-150.0,0.00033413,30]
[408739763,1774183850230,-358.0,0.00033473,2]
[408739764,1774183850239,-7516.0,0.00033498,30]
[408739765,1774183850249,-887.45,0.00033541,120]
[408739766,1774183850258,-200.0,0.00033649,10]
[408739767,1774183850268,-1093.0,0.00033678,2]
[408739768,1774183850277,-600.0,0.00033699,5]
[408739769,1774183850287,-2503.88019962,0.000337,120]
[408739770,1774183850296,-461.0,0.00033785,2]
[408739771,1774183850305,-887.45,0.00033815,120]
[408739772,1774183850314,-250.0,0.00033858,32]
[408739773,1774183850324,-166.66,0.00033875,2]
[408739774,1774183850333,-222.60723059,0.000339,30]
[408739775,1774183850343,-566.0,0.00033977,30]
[408739776,1774183850352,-670.0,0.00034,120]
[408739777,1774183850361,-887.45,0.00034089,120]
[408739778,1774183850370,-150.0,0.00034124,30]
[408739779,1774183850380,-507.0,0.00034136,19]
[408739780,1774183850390,-750.0,0.00034232,2]
[408739781,1774183850403,-750.0,0.00034232,2]
[408739782,1774183850412,-681.0,0.00034232,2]
[408739783,1774183850422,-151.73523716,0.00034235,93]
[408739784,1774183850432,-250.0,0.00034255,2]
[408739785,1774183850443,-250.0,0.00034255,2]
[408739786,1774183850453,-167.0,0.00034255,2]
[408739787,1774183850462,-151.27723662,0.00034295,93]
[408739788,1774183850473,-256.72904002,0.00034315,60]
[408739789,1774183850482,-887.45,0.00034363,120]
[408739790,1774183850492,-362.72905046,0.00034444,30]
[408739791,1774183850502,-1093.0,0.00034485,2]
[408739792,1774183850511,-902.52655756,0.00034521,5]
[408739793,1774183850520,-576.15,0.00034596,60]
[408739794,1774183850529,-887.45,0.00034637,120]
[408739795,1774183850539,-150.0,0.00034696,2]
[408739796,1774183850549,-200.0,0.00034709,2]
[408739797,1774183850558,-256.0,0.00034709,2]
[408739798,1774183850568,-161.0,0.00034734,11]
[408739799,1774183850578,-2142.99,0.000348,2]
[408739800,1774183850587,-150.0,0.00034835,30]
[408739801,1774183850596,-151.0,0.00034882,14]
[408739802,1774183850605,-1044.0,0.00034886,2]
[408739803,1774183850615,-1345.0,0.00034886,2]
[408739804,1774183850624,-3514.0,0.00034886,2]
[408739805,1774183850634,-621.0,0.00034886,2]
[408739806,1774183850643,-150.0,0.00034886,2]
[408739807,1774183850653,-1261.0,0.00034886,2]
[408739808,1774183850663,-924.0,0.00034886,2]
[408739809,1774183850673,-1215.0,0.00034886,2]
[408739810,1774183850683,-272.0,0.00034886,2]
[408739811,1774183850693,-150.0,0.00034886,2]
[408739812,1774183850702,-150.0,0.00034886,2]
[408739813,1774183850711,-200.0,0.00034886,2]
[408739814,1774183850720,-3759.0,0.00034886,2]
[408739815,1774183850730,-150.097,0.00034886,2]
[408739816,1774183850739,-6008.0,0.00034886,2]
[408739817,1774183850748,-416.351,0.00034886,2]
[408739818,1774183850757,-887.45,0.00034911,120]
[408739819,1774183850767,-166.66,0.00034957,2]
[408739820,1774183850901,-566.0,0.00034977,30]
[408739821,1774183850911,-233.44865962,0.00035,30]
[408739822,1774183850921,-1165.76431781,0.00035,30]
[408739823,1774183850930,-1851.1161255,0.00035,30]
[408739824,1774183850940,-3019.999999,0.00035,2]
[408739825,1774183850949,-615.05937721,0.00035,30]
[408739826,1774183850958,-522.17,0.00035,120]
[408739827,1774183850967,-896.77747135,0.0003503,2]
[408739828,1774183850976,-745.65223616,0.0003503,2]
[408739829,1774183850986,-187.0,0.00035068,10]
[408739830,1774183850995,-887.45,0.00035184,120]
[408739831,1774183851004,-2000.0,0.000352,7]
[408739832,1774183851014,-507.0,0.00035254,20]
[408739833,1774183851022,-1093.0,0.00035292,2]
[408739834,1774183851032,-1101.88974739,0.00035313,120]
[408739835,1774183851042,-2490.27041134,0.00035313,120]
[408739836,1774183851051,-671.39991227,0.00035313,120]
[408739837,1774183851061,-151.0,0.00035315,60]
[408739838,1774183851070,-152.0,0.0003538,30]
[408739839,1774183851080,-225.23,0.00035413,2]
[408739840,1774183851090,-764.94,0.00035413,2]
[408739841,1774183851099,-908.39,0.00035413,2]
[408739842,1774183851109,-908.39,0.00035413,2]
[408739843,1774183851119,-908.39,0.00035413,2]
[408739844,1774183851128,-887.45,0.00035458,120]
[408739845,1774183851138,-150.0,0.00035546,30]
[408739846,1774183851147,-210.69153922,0.00035589,120]
[408739847,1774183851158,-536.31,0.000356,120]
[408739848,1774183851168,-150.0,0.00035616,20]
[408739849,1774183851177,-1340.60092791,0.00035616,7]
[408739850,1774183851186,-1340.60092791,0.00035616,7]
[408739851,1774183851196,-1340.60092791,0.00035616,7]
[408739852,1774183851205,-1340.60092791,0.00035616,7]
[408739854,1774183851215,-1340.60092791,0.00035616,7]
[408739856,1774183851223,-1340.60092791,0.00035616,7]
[408739858,1774183851233,-1340.60092791,0.00035616,7]
[408739859,1774183851242,-1340.60092791,0.00035616,7]
[408739861,1774183851251,-1340.60092791,0.00035616,7]
[408739863,1774183851260,-1340.60092791,0.00035616,7]
[408739865,1774183851269,-1340.60092791,0.00035616,7]
[408739867,1774183851278,-1340.60092791,0.00035616,7]
[408739869,1774183851287,-1340.60092791,0.00035616,7]
[408739870,1774183851296,-1340.60092791,0.00035616,7]
[408739872,1774183851305,-1340.60092791,0.00035616,7]
[408739874,1774183851314,-1340.60092791,0.00035616,7]
[408739876,1774183851324,-1340.60092791,0.00035616,7]
[408739878,1774183851334,-1340.60092791,0.00035616,7]
[408739880,1774183851343,-1340.60092791,0.00035616,7]
[408739882,1774183851353,-1340.60092791,0.00035616,7]
[408739884,1774183851362,-1340.60092791,0.00035616,7]
[408739885,1774183851370,-1474.6610207,0.00035616,7]
[408739887,1774183851380,-1474.6610207,0.00035616,7]
[408739889,1774183851389,-1474.6610207,0.00035616,7]
[408739891,1774183851401,-1474.6610207,0.00035616,7]
[408739893,1774183851410,-1474.6610207,0.00035616,7]
[408739895,1774183851419,-1474.6610207,0.00035616,7]
[408739896,1774183851428,-260.0,0.00035616,10]
[408739898,1774183851437,-623.583206,0.00035616,7]
[408739900,1774183851446,-623.583206,0.00035616,7]
[408739902,1774183851456,-623.583206,0.00035616,7]
[408739904,1774183851465,-623.583206,0.00035616,7]
[408739906,1774183851476,-623.583206,0.00035616,7]
[408739908,1774183851484,-623.583206,0.00035616,7]
[408739909,1774183851494,-623.583206,0.00035616,7]
[408739911,1774183851503,-623.583206,0.00035616,7]
[408739913,1774183851513,-887.45,0.00035732,120]
[408739915,1774183851522,-250.0,0.00035751,39]
[408739917,1774183851531,-500.0,0.00035887,120]
[408739919,1774183851540,-58648.31,0.000359,7]
[408739921,1774183851549,-154.925,0.000359,2]
[408739922,1774183851558,-566.0,0.00035977,30]
[408739924,1774183851567,-700.0,0.00036,120]
[408739926,1774183851576,-878.45993269,0.00036,2]
[408739928,1774183851584,-190.82957068,0.00036,120]
[408739930,1774183851594,-1359.0,0.00036,30]
[408739932,1774183851603,-1272.69,0.00036,30]
[408739934,1774183851612,-887.45,0.00036006,120]
[408739935,1774183851621,-166.66,0.0003604,2]
[408739937,1774183851630,-1093.0,0.00036098,5]
[408739939,1774183851639,-675.24,0.00036172,10]
[408739941,1774183851648,-231.63363603,0.00036221,98]
[408739943,1774183851657,-150.0,0.00036257,30]
[408739945,1774183851667,-887.45,0.0003628,120]
[408739947,1774183851675,-151.0,0.00036315,60]
[408739948,1774183851685,-507.0,0.00036373,21]
[408739950,1774183851695,-2000.0,0.000364,2]
[408739952,1774183851704,-150.0,0.0003643,2]
[408739954,1774183851713,-887.45,0.00036554,120]
[408739956,1774183851722,-219.14,0.00036562,10]
[408739958,1774183851732,-362.72905046,0.00036667,30]
[408739960,1774183851740,-507.27122169,0.00036687,99]
[408739961,1774183851750,-700.0,0.00036712,2]
[408739963,1774183851760,-700.0,0.00036712,2]
[408739965,1774183851769,-591.0,0.00036712,2]
[408739967,1774183851778,-887.53,0.00036828,120]
[408739969,1774183851788,-208.0,0.0003689,30]
[408739971,1774183851797,-1217.0,0.000369,120]
[408739973,1774183851807,-852.0,0.000369,120]
[408739975,1774183851816,-597.0,0.000369,120]
[408739977,1774183851827,-417.0,0.000369,120]
[408739979,1774183851836,-1093.0,0.00036905,5]
[408739980,1774183851845,-200.0,0.00036928,10]
[408739982,1774183851855,-150.0,0.00036968,30]
[408739984,1774183851865,-566.0,0.00036977,30]
[408739986,1774183851874,-876.7,0.00036983,10]
[408739988,1774183851883,-166.66,0.00037122,2]
[408739990,1774183851893,-524.65,0.00037128,2]
[408739992,1774183851902,-199.09743184,0.000372,120]
[408739994,1774183851912,-199.09743183,0.000372,120]
[408739995,1774183851921,-200.0,0.0003725,30]
[408739997,1774183851930,-342.0,0.0003725,30]
[408739999,1774183851939,-151.0,0.00037315,60]
[408740001,1774183851948,-250.0,0.00037355,44]
[408740003,1774183851957,-277.0,0.00037416,30]
[408740005,1774183851966,-152.0,0.00037419,3]
[408740007,1774183851975,-250.0,0.00037438,2]
[408740008,1774183851984,-250.0,0.00037438,2]
[408740010,1774183851993,-222.0,0.00037438,2]
[408740012,1774183852003,-507.0,0.00037492,22]
[408740014,1774183852012,-150.0,0.00037679,30]
[408740016,1774183852021,-1093.0,0.00037712,7]
[408740018,1774183852030,-250.0,0.00037733,7]
[408740020,1774183852039,-250.0,0.00037733,7]
[408740022,1774183852048,-250.0,0.00037733,7]
[408740024,1774183852058,-929.95823779,0.00037769,2]
[408740026,1774183852067,-773.2413689,0.00037769,2]
[408740027,1774183852077,-1044.0,0.00037886,2]
[408740029,1774183852086,-1345.0,0.00037886,2]
[408740031,1774183852096,-3514.0,0.00037886,2]
[408740033,1774183852105,-621.0,0.00037886,2]
[408740035,1774183852114,-1261.0,0.00037886,2]
[408740037,1774183852123,-924.0,0.00037886,2]
[408740038,1774183852131,-1215.0,0.00037886,2]
[408740039,1774183852140,-150.0,0.00037886,2]
[408740040,1774183852149,-150.0,0.00037886,2]
[408740041,1774183852158,-150.0,0.00037886,2]
[408740042,1774183852167,-6008.0,0.00037886,2]
[408740043,1774183852176,-415.0,0.00037886,2]
[408740044,1774183852185,-753.63008624,0.000379,120]
[408740045,1774183852193,-10000.01161923,0.00038,90]
[408740046,1774183852202,-700.0,0.00038,120]
[408740047,1774183852210,-164.0,0.00038,30]
[408740048,1774183852219,-486.45,0.00038034,30]
[408740049,1774183852228,-752.65,0.00038034,30]
[408740050,1774183852237,-3708.45,0.00038034,30]
[408740051,1774183852245,-1911.04,0.00038034,30]
[408740052,1774183852255,-1339.59,0.00038034,30]
[408740053,1774183852264,-151.0,0.00038097,14]
[408740054,1774183852272,-305.51734344,0.000381,33]
[408740055,1774183852282,-58648.31,0.000381,7]
[408740056,1774183852291,-2016.02988327,0.000381,33]
[408740057,1774183852300,-802.91359772,0.000381,33]
[408740058,1774183852308,-166.66,0.00038205,2]
[408740059,1774183852317,-150.0,0.00038252,2]
[408740060,1774183852326,-212.0,0.000383,56]
[408740061,1774183852336,-151.0,0.00038315,60]
[408740062,1774183852344,-217.56047974,0.00038329,120]
[408740063,1774183852353,-971.0820929,0.00038329,120]
[408740064,1774183852362,-750.0,0.00038342,2]
[408740065,1774183852370,-750.0,0.00038342,2]
[408740066,1774183852379,-681.0,0.00038342,2]
[408740067,1774183852388,-655.554488,0.00038356,120]
[408740068,1774183852398,-655.554488,0.00038356,120]
[408740069,1774183852409,-150.0,0.00038356,5]
[408740070,1774183852418,-4338.0,0.00038365,2]
[408740071,1774183852426,-150.0,0.0003839,30]
[408740072,1774183852436,-1093.0,0.00038519,7]
[408740073,1774183852445,-1299.86828,0.000386,120]
[408740074,1774183852455,-507.0,0.0003861,23]
[408740076,1774183852465,-3632.645,0.00038695,52]
[408740077,1774183852475,-158.372,0.00038695,52]
[408740079,1774183852484,-500.0,0.000387,120]
[408740081,1774183852492,-500.0,0.000387,120]
[408740082,1774183852502,-500.0,0.000387,120]
[408740084,1774183852512,-500.0,0.000387,120]
[408740087,1774183852521,-500.0,0.000387,120]
[408740088,1774183852531,-500.0,0.000387,120]
[408740090,1774183852540,-500.0,0.000387,120]
[408740091,1774183852549,-500.0,0.000387,120]
[408740092,1774183852559,-500.0,0.000387,120]
[408740093,1774183852568,-500.0,0.000387,120]
[408740094,1774183852577,-500.0,0.000387,120]
[408740095,1774183852586,-500.0,0.000387,120]
[408740096,1774183852595,-500.0,0.000387,120]
[408740097,1774183852603,-500.0,0.000387,120]
[408740098,1774183852612,-500.0,0.000387,120]
[408740099,1774183852621,-500.0,0.000387,120]
[408740100,1774183852630,-500.0,0.000387,120]
[408740101,1774183852640,-500.0,0.000387,120]
[408740102,1774183852648,-500.0,0.000387,120]
[408740103,1774183852657,-500.0,0.000387,120]
[408740104,1774183852667,-500.0,0.000387,120]
[408740105,1774183852676,-500.0,0.000387,120]
[408740106,1774183852685,-500.0,0.000387,120]
[408740107,1774183852694,-500.0,0.000387,120]
[408740108,1774183852703,-250.0,0.00038712,53]
[408740109,1774183852712,-1217.0,0.00038745,120]
[408740110,1774183852721,-852.0,0.00038745,120]
[408740111,1774183852730,-597.0,0.00038745,120]
[408740112,1774183852738,-417.0,0.00038745,120]
[408740113,1774183852747,-150.0,0.00038793,30]
[408740114,1774183852756,-192.0,0.00038793,30]
[408740115,1774183852765,-576.15,0.00038794,90]
[408740116,1774183852774,-1000.0,0.000388,20]
[408740117,1774183852784,-200.0,0.00038819,2]
[408740118,1774183852794,-256.0,0.00038819,2]
[408740119,1774183852803,-500.0,0.0003885,120]
[408740120,1774183852812,-362.72905046,0.00038889,30]
[408740121,1774183852822,-250.0,0.00038904,5]
[408740122,1774183852832,-208.0,0.0003891,30]
[408740123,1774183852841,-165.06944682,0.00039,120]
[408740124,1774183852850,-428.48928638,0.00039,120]
[408740125,1774183852859,-509.85,0.00039,90]
[408740126,1774183852869,-317.58,0.00039,90]
[408740127,1774183852878,-2040.0,0.00039,7]
[408740128,1774183852887,-155.5519,0.000391,2]
[408740129,1774183852897,-150.0,0.000391,30]
[408740130,1774183852906,-225.23,0.00039134,2]
[408740131,1774183852916,-764.94,0.00039134,2]
[408740132,1774183852925,-908.39,0.00039134,2]
[408740133,1774183852934,-908.39,0.00039134,2]
[408740134,1774183852943,-908.39,0.00039134,2]
[408740135,1774183852951,-177.0338293,0.00039161,30]
[408740136,1774183852961,-309.8,0.000392,120]
[408740137,1774183852970,-150.0,0.000393,59]
[408740138,1774183852979,-1621.95,0.000393,20]
[408740139,1774183852989,-412.96,0.000393,20]
[408740140,1774183852998,-1555.27,0.000393,20]
[408740141,1774183853008,-2937.29,0.000393,20]
[408740142,1774183853017,-2222.51,0.000393,20]
[408740143,1774183853027,-151.0,0.00039312,14]
[408740144,1774183853038,-151.0,0.00039315,60]
[408740145,1774183853050,-1093.0,0.00039326,7]
[408740146,1774183853059,-277.0,0.00039385,120]
[408740147,1774183853069,-153.13429654,0.00039434,108]
[408740148,1774183853078,-350.0,0.00039452,5]
[408740149,1774183853087,-200.0,0.00039472,61]
[408740150,1774183853097,-1990.0,0.00039726,120]
[408740151,1774183853106,-507.0,0.00039729,24]
[408740152,1774183853116,-150.0,0.00039811,30]
[408740153,1774183853125,-250.0,0.0003986,66]
[408740154,1774183853134,-169.90912624,0.00039863,2]
[408740155,1774183853143,-210.71794474,0.00039982,2]
[408740156,1774183853153,-500.0,0.0004,120]
[408740157,1774183853162,-199.999999,0.0004,7]
[408740158,1774183853171,-285.29155674,0.0004,60]
[408740159,1774183853180,-500.0,0.0004,2]
[408740160,1774183853189,-979.16666667,0.0004,30]
[408740161,1774183853200,-2805.21311167,0.0004,120]
[408740162,1774183853210,-155.48580031,0.0004,120]
[408740163,1774183853220,-1312.14697436,0.0004,120]
[408740164,1774183853230,-3603.021285,0.0004,100]
[408740165,1774183853239,-979.16666667,0.0004,120]
[408740166,1774183853249,-293.07,0.0004,120]
[408740167,1774183853258,-228.71,0.0004,120]
[408740168,1774183853268,-625.93,0.0004,120]
[408740169,1774183853277,-219.06,0.0004,120]
[408740170,1774183853286,-558.26,0.0004,120]
[408740171,1774183853295,-267.21,0.0004,120]
[408740172,1774183853304,-208.86,0.0004,120]
[408740173,1774183853313,-189.63,0.0004,120]
[408740174,1774183853322,-261.78,0.0004,120]
[408740175,1774183853332,-570.67651944,0.0004,6]
[408740176,1774183853343,-173.78,0.0004,90]
[408740177,1774183853352,-2412.74,0.0004,90]
[408740178,1774183853362,-450.0,0.0004,5]
[408740179,1774183853371,-1629.32,0.0004,90]
[408740180,1774183853380,-1859.47,0.0004,60]
[408740181,1774183853389,-1000.0,0.0004,2]
[408740182,1774183853400,-1000.0,0.0004,2]
[408740183,1774183853410,-1000.0,0.0004,2]
[408740184,1774183853419,-1000.0,0.0004,2]
[408740185,1774183853428,-1000.0,0.0004,2]